bitfinex/quotes_BTCUSD_20250826
["timestamp","ask_amount","ask_price","bid_price","bid_amount"]
[1756211159791,0.00222701,109950.0,109940.0,0.35695642]
[1756211160120,0.00011701,109950.0,109940.0,0.35695642]
[1756211160333,0.79407029,109950.0,109940.0,0.35493642]
[1756211160542,0.18411787,109950.0,109940.0,0.35493642]
[1756211161378,0.00221701,109950.0,109940.0,0.35695642]
[1756211161561,0.18411787,109950.0,109940.0,0.35695642]
[1756211164267,0.18201787,109950.0,109940.0,0.35695642]
[1756211165022,0.18411787,109950.0,109940.0,0.35695642]
[1756211165234,0.18411787,109950.0,109940.0,0.20339642]
[1756211165429,0.18411787,109950.0,109940.0,0.35695642]
[1756211165639,0.18411787,109950.0,109940.0,0.01945902]
[1756211165814,0.79192646,109950.0,109940.0,0.35192642]
[1756211166015,0.79192646,109950.0,109940.0,0.35493642]
[1756211166016,0.18411787,109950.0,109940.0,0.35493642]
[1756211167376,0.18411787,109950.0,109940.0,0.17301902]
[1756211167593,0.18411787,109950.0,109940.0,0.35493642]
[1756211168654,0.18411787,109950.0,109940.0,0.35695642]
[1756211172926,0.18201787,109950.0,109940.0,0.35695642]
[1756211174732,0.78982646,109950.0,109940.0,0.35695642]
[1756211175381,0.63990404,109950.0,109940.0,0.35695642]
[1756211175581,0.63990404,109950.0,109940.0,0.35192642]
[1756211176090,0.63990404,109950.0,109940.0,0.35489642]
[1756211176232,0.63990404,109950.0,109940.0,0.35688642]
[1756211176233,0.63781404,109950.0,109940.0,0.35688642]
[1756211179938,0.63979404,109950.0,109940.0,0.01644902]
[1756211180293,0.63979404,109950.0,109940.0,0.35188642]
[1756211181424,0.63979404,109950.0,109940.0,0.35485642]
[1756211182038,0.63979404,109950.0,109940.0,0.35188642]
[1756211182251,0.63979404,109950.0,109940.0,0.16996902]
[1756211182861,0.63979404,109950.0,109940.0,0.35188642]
[1756211183065,0.63979404,109950.0,109940.0,0.35684642]
[1756211183683,0.63979404,109950.0,109940.0,0.17492902]
[1756211183925,0.63979404,109950.0,109940.0,0.17293902]
[1756211184392,0.63979404,109950.0,109940.0,0.35684642]
[1756211184604,0.44027674,109950.0,109940.0,0.17488902]
[1756211184737,0.6221776,109950.0,109940.0,0.17289902]
[1756211185195,0.6221776,109950.0,109940.0,0.16992902]
[1756211185336,0.6221776,109950.0,109940.0,0.01644902]
[1756211185537,0.6221776,109950.0,109940.0,0.35481642]
[1756211186144,0.6221776,109950.0,109940.0,0.35680642]
[1756211188080,0.6221776,109950.0,109940.0,0.17488902]
[1756211188295,0.6221776,109950.0,109940.0,0.16992902]
[1756211188510,0.63967703,109950.0,109940.0,0.16992902]
[1756211188710,0.63967703,109950.0,109940.0,0.35184642]
[1756211188946,0.63967703,109950.0,109940.0,0.16992902]
[1756211189099,0.63967703,109950.0,109940.0,0.35481642]
[1756211189539,0.18388086,109950.0,109940.0,0.35680642]
[1756211189744,0.63769703,109950.0,109940.0,0.35680642]
[1756211192028,0.63967703,109950.0,109940.0,0.35680642]
[1756211193039,0.63769703,109950.0,109940.0,0.35680642]
[1756211195774,0.18190086,109950.0,109940.0,0.35680642]
[1756211195963,0.63769703,109950.0,109940.0,0.35680642]
[1756211197357,0.63967703,109950.0,109940.0,0.35680642]
[1756211197559,0.63769703,109950.0,109940.0,0.35680642]
[1756211198469,0.63748715,109950.0,109940.0,0.35680642]
[1756211198992,0.18169098,109950.0,109940.0,0.35680642]
[1756211199228,0.63748715,109950.0,109940.0,0.35680642]
[1756211199731,0.44654343,109950.0,109940.0,0.35680642]
[1756211199936,0.62844429,109950.0,109940.0,0.35680642]
[1756211204280,0.63042429,109950.0,109940.0,0.35680642]
[1756211204674,0.62844429,109950.0,109940.0,0.35680642]
[1756211210965,0.63042429,109950.0,109940.0,0.35680642]
[1756211217335,0.62844429,109950.0,109940.0,0.35680642]
[1756211219243,0.63042429,109950.0,109940.0,0.35680642]
[1756211223287,0.18190086,109950.0,109940.0,0.35680642]
[1756211223487,0.63769703,109950.0,109940.0,0.35680642]
[1756211224096,0.20963206,109960.0,109940.0,0.35680642]
[1756211224299,0.63984086,109950.0,109940.0,0.35680642]
[1756211224554,0.63769703,109950.0,109940.0,0.35680642]
[1756211224802,0.18190086,109950.0,109940.0,0.35680642]
[1756211224920,0.63769703,109950.0,109940.0,0.35680642]
[1756211231409,0.66504303,109950.0,109940.0,0.38415342]
[1756211232776,0.66702303,109950.0,109940.0,0.38415342]
[1756211234364,0.66504303,109950.0,109940.0,0.38415342]
[1756211234776,0.20924686,109950.0,109940.0,0.38415342]
[1756211235080,0.66504303,109950.0,109940.0,0.38415342]
[1756211238143,0.66504303,109950.0,109940.0,0.38395342]
[1756211238144,0.66702303,109950.0,109940.0,0.38395342]
[1756211241556,0.66504303,109950.0,109940.0,0.38395342]
[1756211245245,0.66702303,109950.0,109940.0,0.04875602]
[1756211245496,1.1241992,109950.0,109940.0,0.01644902]
[1756211245858,1.2774392,109950.0,109940.0,0.15524]
[1756211246020,1.29712494,109950.0,109940.0,0.15524]
[1756211246427,1.2774392,109950.0,109940.0,0.15524]
[1756211246846,1.2774392,109950.0,109940.0,0.002]
[1756211251441,0.36446686,109950.0,109940.0,0.00414]
[1756211251655,0.20924686,109950.0,109940.0,0.00737]
[1756211251812,0.66702303,109950.0,109940.0,0.00737]
[1756211253332,0.66702303,109950.0,109940.0,0.00523]
[1756211253990,0.66702303,109950.0,109940.0,0.002]
[1756211254779,0.66702303,109950.0,109940.0,0.00737]
[1756211254990,0.66504303,109950.0,109940.0,0.00737]
[1756211256710,0.66504303,109950.0,109940.0,0.20673642]
[1756211256918,0.66504303,109950.0,109940.0,0.02481902]
[1756211257131,0.66702303,109950.0,109940.0,0.02481902]
[1756211257362,0.66702303,109950.0,109940.0,0.01944902]
[1756211257363,1.1228192,109950.0,109940.0,0.01944902]
[1756211257581,1.1228192,109950.0,109940.0,0.17264902]
[1756211257779,0.66702303,109950.0,109940.0,0.17264902]
[1756211257929,0.66702303,109950.0,109940.0,0.17587902]
[1756211259811,0.66702303,109950.0,109940.0,0.17264902]
[1756211260208,0.66702303,109950.0,109940.0,0.17801902]
[1756211261097,0.63769703,109950.0,109940.0,0.17801902]
[1756211261297,0.66504503,109950.0,109940.0,0.17801902]
[1756211261500,0.66504503,109950.0,109940.0,0.20536702]
[1756211261711,0.20924886,109950.0,109940.0,0.20536702]
[1756211262036,0.66504503,109950.0,109940.0,0.20536702]
[1756211263203,0.60129343,109950.0,109940.0,0.20536702]
[1756211266378,0.18190086,109950.0,109940.0,0.20536702]
[1756211266598,0.63769703,109950.0,109940.0,0.20536702]
[1756211274379,0.63769703,109950.0,109940.0,0.05216702]
[1756211274696,1.0934932,109950.0,109940.0,0.19995702]
[1756211275303,1.2466132,109950.0,109940.0,0.04679702]
[1756211275518,1.2466132,109950.0,109940.0,0.029348]
[1756211275519,1.26629121,109950.0,109940.0,0.029348]
[1756211275714,1.26629121,109950.0,109940.0,0.002165]
[1756211276058,1.29364121,109950.0,109940.0,0.002165]
[1756211276470,1.29364121,109950.0,109940.0,0.002205]
[1756211278270,0.22892887,109950.0,109940.0,0.007345]
[1756211278484,0.66504703,109950.0,109940.0,0.007345]
[1756211278743,0.66504703,109950.0,109940.0,0.005375]
[1756211278958,1.1208432,109950.0,109940.0,0.002205]
[1756211280433,1.29363847,109950.0,109940.0,0.002205]
[1756211281546,1.29363847,109950.0,109940.0,0.007345]
[1756211281891,0.38204613,109950.0,109940.0,0.007345]
[1756211282110,1.29363847,109950.0,109940.0,0.007345]
[1756211282567,1.29363847,109950.0,109940.0,0.005375]
[1756211283038,1.29363847,109950.0,109940.0,0.002205]
[1756211283236,1.29363847,109950.0,109940.0,0.005375]
[1756211283441,1.29363847,109950.0,109940.0,0.002205]
[1756211283657,1.29363847,109950.0,109940.0,0.005375]
[1756211284059,1.29363847,109950.0,109940.0,0.007345]
[1756211284263,1.29363847,109950.0,109940.0,0.005375]
[1756211286028,1.29363847,109950.0,109940.0,0.007345]
[1756211286496,1.29363847,109950.0,109940.0,0.005375]
[1756211287073,0.38204613,109950.0,109940.0,0.007345]
[1756211287295,1.2739632,109950.0,109940.0,0.007345]
[1756211291452,1.2466132,109950.0,109940.0,0.007345]
[1756211292403,1.2466132,109950.0,109940.0,0.005375]
[1756211294295,1.2466132,109950.0,109940.0,0.002205]
[1756211294606,1.2466132,109950.0,109940.0,0.005135]
[1756211297353,1.2466132,109950.0,109940.0,0.007265]
[1756211299364,1.2662865,109950.0,109940.0,0.007265]
[1756211300425,1.2662865,109950.0,109940.0,0.005135]
[1756211301109,1.2662865,109950.0,109940.0,0.002205]
[1756211301753,1.2662865,109950.0,109940.0,0.005135]
[1756211302408,1.2662865,109950.0,109940.0,0.002205]
[1756211304528,1.2662865,109950.0,109940.0,0.005135]
[1756211307033,1.2936365,109950.0,109940.0,0.005135]
[1756211311608,1.2936365,109950.0,109940.0,0.002205]
[1756211312339,1.2936365,109950.0,109940.0,0.005135]
[1756211315302,1.07340517,109950.0,109940.0,0.005135]
[1756211315548,1.25530603,109950.0,109940.0,0.005135]
[1756211318743,1.27498856,109950.0,109940.0,0.005135]
[1756211318954,1.25530603,109950.0,109940.0,0.005135]
[1756211319762,1.25530603,109950.0,109940.0,0.007265]
[1756211322395,1.25530603,109950.0,109940.0,0.005135]
[1756211324783,1.1208432,109950.0,109940.0,0.007225]
[1756211324983,1.2738032,109950.0,109940.0,0.007225]
[1756211325339,1.29348577,109950.0,109940.0,0.007225]
[1756211325556,1.2738032,109950.0,109940.0,0.007225]
[1756211325753,1.29348542,109950.0,109940.0,0.007225]
[1756211326936,1.14052542,109950.0,109940.0,0.007225]
[1756211327354,1.1208432,109950.0,109940.0,0.007225]
[1756211327702,1.14052485,109950.0,109940.0,0.007225]
[1756211330846,1.29348485,109950.0,109940.0,0.007225]
[1756211331279,1.2738032,109950.0,109940.0,0.007225]
[1756211335533,1.2738032,109950.0,109940.0,0.005135]
[1756211335680,1.2738032,109950.0,109940.0,0.007225]
[1756211338891,1.2738032,109950.0,109940.0,0.005135]
[1756211339519,1.72959937,109950.0,109940.0,0.002205]
[1756211339761,1.32224709,109950.0,109940.0,0.002205]
[1756211339983,1.29348359,109950.0,109940.0,0.002205]
[1756211342112,1.29348359,109950.0,109940.0,0.001205]
[1756211342346,1.29348359,109950.0,109940.0,0.000205]
[1756211348713,1.29340359,109950.0,109940.0,0.000205]
[1756211350918,1.29340359,109950.0,109940.0,0.003325]
[1756211351148,1.14052359,109950.0,109940.0,0.003325]
[1756211351363,1.29340359,109950.0,109940.0,0.005415]
[1756211353327,1.29339983,109950.0,109940.0,0.005415]
[1756211355131,1.29339983,109950.0,109940.0,0.003325]
[1756211355931,1.14051983,109950.0,109940.0,0.003325]
[1756211356138,1.29339983,109950.0,109940.0,0.003325]
[1756211356985,1.29339983,109950.0,109940.0,0.000205]
[1756211357521,1.29339983,109950.0,109940.0,0.003375]
[1756211357718,1.29339983,109950.0,109940.0,0.000205]
[1756211358359,1.29339983,109950.0,109940.0,0.005375]
[1756211358536,1.29339983,109950.0,109940.0,0.000205]
[1756211359674,1.29339983,109950.0,109940.0,0.003375]
[1756211361448,1.29339983,109950.0,109940.0,0.000205]
[1756211362020,6.29339983,109950.0,109940.0,0.000205]
[1756211362663,6.2022019,109950.0,109940.0,0.003375]
[1756211362864,6.2295539,109950.0,109940.0,0.003375]
[1756211363822,5.36209286,109950.0,109940.0,0.003375]
[1756211364033,6.2736852,109950.0,109940.0,0.003375]
[1756211365322,6.2736852,109950.0,109940.0,0.000205]
[1756211365734,6.2736852,109950.0,109940.0,0.003375]
[1756211373456,6.09178434,109950.0,109940.0,0.003375]
[1756211374580,6.11146795,109950.0,109940.0,0.003375]
[1756211375726,6.11146795,109950.0,109940.0,0.000205]
[1756211376500,6.11146795,109950.0,109940.0,0.003375]
[1756211379421,6.11146795,109950.0,109940.0,0.000205]
[1756211379849,6.11146795,109950.0,109940.0,0.003375]
[1756211380049,6.11146795,109950.0,109940.0,0.000205]
[1756211380260,6.12001141,109950.0,109940.0,0.003375]
[1756211382226,6.12001141,109950.0,109940.0,0.005435]
[1756211382669,6.11146795,109950.0,109940.0,0.005435]
[1756211382980,6.11997115,109950.0,109940.0,0.005435]
[1756211383139,6.11142795,109950.0,109940.0,0.005435]
[1756211390756,5.95862795,109950.0,109940.0,0.005435]
[1756211390942,6.11138795,109950.0,109940.0,0.005435]
[1756211392335,5.95862795,109950.0,109940.0,0.005435]
[1756211392521,0.63590817,109950.0,109940.0,0.005435]
[1756211394256,0.48314817,109950.0,109940.0,0.005435]
[1756211394461,0.63590817,109950.0,109940.0,0.005435]
[1756211397494,0.63586817,109950.0,109940.0,0.005435]
[1756211398133,1.09166434,109950.0,109940.0,0.005435]
[1756211399342,0.93894434,109950.0,109940.0,0.005435]
[1756211399750,1.09166434,109950.0,109940.0,0.005435]
[1756211403556,0.93894434,109950.0,109940.0,0.005435]
[1756211403774,0.180072,109950.0,109940.0,0.005435]
[1756211403975,1.59380817,109950.0,109940.0,0.005435]
[1756211404172,5.48314817,109950.0,109940.0,0.005435]
[1756211404382,0.45579617,109950.0,109940.0,0.005435]
[1756211408418,0.04198407,109960.0,109940.0,0.02288402]
[1756211408620,0.00214383,109950.0,109940.0,0.47551019]
[1756211408807,5.00214383,109950.0,109940.0,0.50286019]
[1756211409015,0.63627503,109960.0,109940.0,0.04706402]
[1756211409223,0.00044786,109960.0,109950.0,0.45877617]
[1756211409342,0.00044786,109960.0,109950.0,0.46083617]
[1756211409543,0.00044786,109960.0,109950.0,0.48818417]
[1756211409746,0.00044786,109960.0,109950.0,0.50563319]
[1756211410028,0.00044786,109960.0,109950.0,0.04983702]
[1756211412238,0.00144786,109960.0,109950.0,0.04983702]
[1756211412680,0.00044786,109960.0,109950.0,0.04983702]
[1756211413299,0.00044786,109960.0,109950.0,0.65831319]
[1756211414027,0.00014786,109960.0,109950.0,0.65831319]
[1756211414442,0.00014786,109960.0,109950.0,0.20351702]
[1756211416373,0.00014786,109960.0,109950.0,0.65931319]
[1756211418626,0.00014786,109960.0,109950.0,0.20351702]
[1756211418935,0.00014786,109960.0,109950.0,0.65931319]
[1756211426725,0.00014786,109960.0,109950.0,0.20351702]
[1756211426958,0.00014786,109960.0,109950.0,0.65931319]
[1756211427496,0.00014786,109960.0,109950.0,0.72927319]
[1756211433250,0.00014786,109960.0,109950.0,0.71182417]
[1756211433475,0.00014786,109960.0,109950.0,0.72927319]
[1756211435437,0.00014786,109960.0,109950.0,0.57659319]
[1756211435950,0.00014786,109960.0,109950.0,0.72919319]
[1756211436916,0.00014786,109960.0,109950.0,0.27339702]
[1756211437128,0.45594403,109960.0,109950.0,0.27340702]
[1756211437319,0.00014786,109960.0,109950.0,0.27340702]
[1756211437519,0.45594403,109960.0,109950.0,0.27340702]
[1756211437749,0.00014786,109960.0,109950.0,0.27340702]
[1756211437949,0.45594403,109960.0,109950.0,0.27340702]
[1756211438568,0.45594403,109960.0,109950.0,0.27138702]
[1756211438946,0.00014786,109960.0,109950.0,0.27138702]
[1756211439152,0.9117402,109960.0,109950.0,0.27138702]
[1756211439507,0.00014786,109960.0,109950.0,0.27138702]
[1756211439923,0.45594403,109960.0,109950.0,0.27138702]
[1756211440269,0.00014786,109960.0,109950.0,0.27138702]
[1756211440426,0.45594403,109960.0,109950.0,0.27138702]
[1756211440627,0.9117402,109960.0,109950.0,0.04579702]
[1756211440988,0.9117402,109960.0,109950.0,0.19839702]
[1756211443377,0.60787369,109960.0,109950.0,0.19839702]
[1756211444048,0.60787369,109960.0,109950.0,0.04579702]
[1756211444214,0.00014786,109960.0,109950.0,0.19839702]
[1756211444422,0.60787369,109960.0,109950.0,0.19839702]
[1756211445712,0.00014786,109960.0,109950.0,0.19839702]
[1756211445915,0.60787369,109960.0,109950.0,0.19839702]
[1756211446606,0.60787369,109960.0,109950.0,0.04579702]
[1756211446781,0.60787369,109960.0,109950.0,0.19835702]
[1756211449019,0.00014786,109960.0,109950.0,0.20139702]
[1756211449269,0.00014786,109960.0,109950.0,0.20343702]
[1756211449477,0.60787369,109960.0,109950.0,0.20343702]
[1756211451653,0.00014786,109960.0,109950.0,0.20343702]
[1756211451878,0.60787369,109960.0,109950.0,0.20343702]
[1756211452107,0.00014786,109960.0,109950.0,0.20343702]
[1756211455126,0.60787369,109960.0,109950.0,0.20343702]
[1756211462352,0.00014786,109960.0,109950.0,0.20343702]
[1756211462567,0.00014786,109960.0,109950.0,0.88112285]
[1756211462992,0.00014786,109960.0,109950.0,0.27339702]
[1756211463408,0.00014786,109960.0,109950.0,0.45529788]
[1756211467250,0.00014786,109960.0,109950.0,1.06302371]
[1756211468004,0.00014786,109960.0,109950.0,0.46462375]
[1756211468428,0.00014786,109960.0,109950.0,1.41234958]
[1756211468920,0.00014786,109960.0,109950.0,1.41434958]
[1756211469553,0.00014786,109960.0,109950.0,1.41334958]
[1756211470165,0.00014786,109960.0,109950.0,1.41634958]
[1756211471897,0.00014786,109960.0,109950.0,1.39890056]
[1756211472231,0.00014786,109960.0,109950.0,1.81634958]
[1756211472411,1e-08,109960.0,109950.0,1.81634958]
[1756211473152,0.0004,109970.0,109960.0,0.53950533]
[1756211473389,0.0004,109970.0,109960.0,1.14723116]
[1756211473601,0.0004,109970.0,109960.0,1.15234116]
[1756211473812,0.0004,109970.0,109960.0,1.55598616]
[1756211474359,0.0004,109970.0,109960.0,1.55798616]
[1756211475386,0.7990572,110010.0,110000.0,0.1992672]
[1756211475629,0.80862367,110010.0,110000.0,0.3517872]
[1756211476013,0.80862367,110010.0,110000.0,0.3791212]
[1756211476823,0.81262367,110010.0,110000.0,0.3791212]
[1756211477222,0.81462367,110010.0,110000.0,0.3791212]
[1756211477406,0.80553359,110010.0,110000.0,0.3791212]
[1756211477614,0.19780776,110010.0,110000.0,0.3791212]
[1756211477809,0.80553359,110010.0,110000.0,0.3791212]
[1756211478019,0.01596647,110010.0,110000.0,0.3791212]
[1756211478366,0.6236923,110010.0,110000.0,0.3791212]
[1756211479025,0.80549395,110010.0,110000.0,0.3791212]
[1756211479243,0.80349395,110010.0,110000.0,0.3791212]
[1756211479646,0.79949395,110010.0,110000.0,0.19730302]
[1756211479858,0.79949395,110010.0,110000.0,0.3791212]
[1756211480067,0.80149395,110010.0,110000.0,0.19730302]
[1756211480295,0.80249395,110010.0,110000.0,0.3791212]
[1756211481252,0.01296647,110010.0,110000.0,0.3791212]
[1756211481459,0.6206923,110010.0,110000.0,0.3821512]
[1756211481898,0.6206923,110010.0,110000.0,0.3842312]
[1756211483915,0.00344788,110010.0,110000.0,0.3842312]
[1756211484747,0.61117371,110010.0,110000.0,0.3842312]
[1756211484895,0.60917371,110010.0,110000.0,0.3842312]
[1756211485111,0.00144788,110010.0,110000.0,0.3842312]
[1756211485322,0.00144788,110010.0,110000.0,0.39351159]
[1756211485723,0.00044788,110010.0,110000.0,1.00123742]
[1756211485958,0.00044788,110010.0,110000.0,0.39351159]
[1756211487431,0.00144788,110010.0,110000.0,0.39347159]
[1756211487659,0.00044788,110010.0,110000.0,0.39347159]
[1756211487862,0.00044788,110010.0,110000.0,1.00119742]
[1756211488337,0.00044788,110010.0,110000.0,0.39347159]
[1756211490523,0.44601528,110030.0,110000.0,0.39347159]
[1756211490759,0.7986104,110040.0,110020.0,0.19923414]
[1756211491002,1.15817432,110040.0,110030.0,0.15264]
[1756211491679,1.15817432,110040.0,110030.0,0.3344086]
[1756211491926,0.55991079,110040.0,110030.0,0.3324086]
[1756211492163,0.02902622,110040.0,110030.0,0.34985762]
[1756211492410,0.64524845,110040.0,110030.0,0.34985762]
[1756211492614,0.63675205,110040.0,110030.0,0.37718362]
[1756211492799,0.64075205,110040.0,110030.0,0.37718362]
[1756211493031,0.03302622,110040.0,110030.0,0.37718362]
[1756211493242,0.0134623,110040.0,110030.0,0.37618362]
[1756211493453,0.0134623,110040.0,110030.0,0.37921362]
[1756211493663,0.24321082,110060.0,110030.0,0.38129362]
[1756211493868,6.1683175,110050.0,110040.0,0.19920111]
[1756211494075,0.81755416,110050.0,110040.0,0.19920111]
[1756211494308,0.81755416,110050.0,110040.0,0.19720111]
[1756211494516,0.63579191,110050.0,110040.0,0.20023111]
[1756211495012,0.81752748,110050.0,110040.0,0.20023111]
[1756211495258,0.02806608,110050.0,110040.0,0.20023111]
[1756211495454,0.82706212,110050.0,110040.0,0.19720111]
[1756211495870,0.82906212,110050.0,110040.0,0.19720111]
[1756211496100,0.82906173,110050.0,110040.0,0.19720111]
[1756211496312,0.64532616,110050.0,110040.0,0.20023111]
[1756211497134,0.03760077,110050.0,110040.0,0.20023111]
[1756211497334,0.6453266,110050.0,110040.0,0.20023111]
[1756211497547,0.03760077,110050.0,110040.0,0.20231111]
[1756211497756,0.02806638,110050.0,110040.0,0.22963411]
[1756211499285,0.01957134,110050.0,110040.0,0.22963411]
[1756211499500,0.02806408,110050.0,110040.0,0.22963411]
[1756211499710,0.0005436,110060.0,110050.0,0.18173557]
[1756211499942,0.020113,110060.0,110050.0,0.40788557]
[1756211500159,0.020113,110060.0,110050.0,0.40996557]
[1756211500373,0.020113,110060.0,110050.0,0.43728457]
[1756211500593,0.020113,110060.0,110050.0,0.47917821]
[1756211501460,0.020113,110060.0,110050.0,0.48017821]
[1756211502089,0.020113,110060.0,110050.0,0.48021821]
[1756211502909,0.020113,110060.0,110050.0,0.48221821]
[1756211504433,0.02009497,110060.0,110050.0,0.48221821]
[1756211504665,0.01899497,110060.0,110050.0,0.48221821]
[1756211504868,0.20071403,110060.0,110050.0,0.32897821]
[1756211505089,0.20071403,110060.0,110050.0,0.48217821]
[1756211505312,0.80843986,110060.0,110050.0,0.48225821]
[1756211505529,0.20071403,110060.0,110050.0,0.48225821]
[1756211505770,0.19981403,110060.0,110050.0,0.48225821]
[1756211505980,0.18171906,110060.0,110050.0,0.48225821]
[1756211506944,0.78944489,110060.0,110050.0,0.48225821]
[1756211507740,0.78944489,110060.0,110050.0,0.32897821]
[1756211507959,0.21585059,110070.0,110060.0,0.01744902]
[1756211508164,0.82405497,110070.0,110060.0,0.01744902]
[1756211508794,0.82405497,110070.0,110060.0,0.04476802]
[1756211509008,0.21632914,110070.0,110060.0,0.04775802]
[1756211509218,0.82405497,110070.0,110060.0,0.22947708]
[1756211510342,0.82405497,110070.0,110060.0,0.04476802]
[1756211510677,0.85669034,110070.0,110060.0,0.01744902]
[1756211510877,0.85669034,110070.0,110060.0,0.17068902]
[1756211511564,0.86518844,110070.0,110060.0,0.17068902]
[1756211512965,0.84074366,110070.0,110060.0,0.17068902]
[1756211513930,0.18173557,110050.0,110040.0,0.00299]
[1756211514140,0.18173557,110050.0,110030.0,0.06988]
[1756211514141,0.18175209,110040.0,110030.0,0.25463264]
[1756211514358,0.78947792,110040.0,110030.0,0.42755166]
[1756211514588,1.39720375,110040.0,110030.0,0.097206]
[1756211514810,0.1817686,110030.0,110020.0,0.04142174]
[1756211515034,0.81395499,110030.0,110020.0,0.19478174]
[1756211515255,0.81395499,110030.0,110020.0,0.15336]
[1756211515676,0.81395499,110030.0,110020.0,0.17080902]
[1756211516100,0.18178512,110020.0,110010.0,0.100199]
[1756211516321,0.78951095,110020.0,110010.0,0.2537426]
[1756211516536,0.78951095,110020.0,110010.0,0.27119162]
[1756211517406,0.78951095,110020.0,110010.0,0.49331688]
[1756211517625,0.78951095,110020.0,110010.0,0.49542688]
[1756211517828,0.80909301,110020.0,110010.0,0.31462523]
[1756211518233,0.80909301,110020.0,110010.0,0.24474523]
[1756211518378,0.80909301,110020.0,110010.0,0.24774523]
[1756211518803,0.20136718,110020.0,110010.0,0.24774523]
[1756211519002,0.80909301,110020.0,110010.0,0.24774523]
[1756211519203,0.80909301,110020.0,110010.0,0.17495262]
[1756211521199,1.14909301,110020.0,110010.0,0.0041436]
[1756211521416,1.17355357,110020.0,110010.0,0.0041436]
[1756211521625,0.56582774,110020.0,110010.0,0.0041436]
[1756211521868,1.32691357,110020.0,110010.0,0.0041436]
[1756211522453,1.30245301,110020.0,110010.0,0.0041436]
[1756211523530,1.30245301,110020.0,110010.0,0.0031436]
[1756211524123,1.30245301,110020.0,110010.0,0.0001436]
[1756211524528,1.30257301,110020.0,110010.0,0.0031336]
[1756211524962,1.30257301,110020.0,110010.0,0.0051336]
[1756211525203,1.30254555,110020.0,110010.0,0.0051336]
[1756211525740,1.30254555,110020.0,110010.0,0.0021436]
[1756211526786,1.30270555,110020.0,110010.0,0.0021436]
[1756211527428,1.28315095,110020.0,110010.0,0.0021436]
[1756211527816,1.28311095,110020.0,110010.0,0.0021436]
[1756211527984,0.76132583,110020.0,110010.0,0.0021436]
[1756211528344,0.94311095,110020.0,110010.0,0.0021436]
[1756211528589,0.78951095,110020.0,110010.0,0.0021436]
[1756211528808,0.94311095,110020.0,110010.0,0.0051336]
[1756211529082,0.18178512,110020.0,110010.0,0.0072436]
[1756211529311,0.94311095,110020.0,110010.0,0.0072436]
[1756211530167,0.18178512,110020.0,110010.0,0.0072436]
[1756211530403,0.94307095,110020.0,110010.0,0.0072436]
[1756211531585,0.78951095,110020.0,110010.0,0.0072436]
[1756211531920,0.94311095,110020.0,110010.0,0.0072436]
[1756211533237,0.78951095,110020.0,110010.0,0.0072436]
[1756211533466,0.94311095,110020.0,110010.0,0.0072436]
[1756211533844,0.33538512,110020.0,110010.0,0.0072436]
[1756211534058,0.94311095,110020.0,110010.0,0.0072436]
[1756211535474,0.78951095,110020.0,110010.0,0.0072436]
[1756211535685,0.33538512,110020.0,110010.0,0.0072436]
[1756211535895,0.94311095,110020.0,110010.0,0.0072436]
[1756211536880,0.78951095,110020.0,110010.0,0.0072436]
[1756211537068,0.94307095,110020.0,110010.0,0.0072436]
[1756211537416,0.78951095,110020.0,110010.0,0.0072436]
[1756211537622,0.94307095,110020.0,110010.0,0.0072436]
[1756211538192,0.78951095,110020.0,110010.0,0.0072436]
[1756211538396,0.94307095,110020.0,110010.0,0.0072436]
[1756211539770,0.18178512,110020.0,110010.0,0.20649427]
[1756211539995,0.78951095,110020.0,110010.0,0.20649427]
[1756211541003,0.18178512,110020.0,110010.0,0.20649427]
[1756211541205,0.78951095,110020.0,110010.0,0.20649427]
[1756211541508,0.80910432,110020.0,110010.0,0.20649427]
[1756211541728,0.01959337,110020.0,110010.0,0.20649427]
[1756211541929,0.60772583,110020.0,110010.0,0.20649427]
[1756211542186,0.78951095,110020.0,110010.0,0.20649427]
[1756211542736,0.60772583,110020.0,110010.0,0.20649427]
[1756211543148,0.78951095,110020.0,110010.0,0.20649427]
[1756211543996,0.60772583,110020.0,110010.0,0.20649427]
[1756211544368,0.62736871,110020.0,110010.0,0.20649427]
[1756211545081,0.80915383,110020.0,110010.0,0.20649427]
[1756211546348,0.80915383,110020.0,110010.0,0.17837262]
[1756211546790,0.80915383,110020.0,110010.0,0.36017427]
[1756211547407,0.201428,110020.0,110010.0,0.36017427]
[1756211549441,0.201428,110020.0,110010.0,0.17626262]
[1756211549962,0.201428,110020.0,110010.0,0.35806427]
[1756211550173,0.201428,110020.0,110010.0,0.36017427]
[1756211551325,0.201428,110020.0,110010.0,0.35817427]
[1756211551561,0.201428,110020.0,110010.0,0.35917427]
[1756211551806,0.201428,110020.0,110010.0,0.36017427]
[1756211555983,0.01964288,110020.0,110010.0,0.36017427]
[1756211560354,0.1817686,110030.0,110020.0,0.19923414]
[1756211560570,0.20141612,110030.0,110020.0,0.20433414]
[1756211560926,0.01964752,110030.0,110020.0,0.20433414]
[1756211561157,0.19083969,110040.0,110030.0,0.19921762]
[1756211561331,0.01964509,110040.0,110030.0,0.35779762]
[1756211561538,0.34430234,110050.0,110030.0,0.35779762]
[1756211561745,0.34430234,110050.0,110030.0,0.35477762]
[1756211561746,0.18175209,110040.0,110030.0,0.35477762]
[1756211561978,0.34426234,110050.0,110030.0,0.35477762]
[1756211562185,0.36390133,110050.0,110030.0,0.35477762]
[1756211562386,0.36390133,110050.0,110040.0,0.00302]
[1756211563025,0.21046133,110050.0,110040.0,0.00302]
[1756211563243,0.36390133,110050.0,110040.0,0.0051]
[1756211563690,0.36490133,110050.0,110040.0,0.0051]
[1756211564315,0.02063899,110050.0,110040.0,0.20430111]
[1756211564555,0.001,110050.0,110040.0,0.81202694]
[1756211564765,0.003,110050.0,110040.0,0.81202694]
[1756211564972,0.001,110050.0,110040.0,0.20430111]
[1756211565382,0.001,110050.0,110040.0,0.81302694]
[1756211565594,0.19080501,110060.0,110050.0,0.19918459]
[1756211565815,0.19080501,110060.0,110050.0,0.35278459]
[1756211566019,0.54060307,110070.0,110050.0,0.35788459]
[1756211566224,0.54060307,110070.0,110060.0,0.18473906]
[1756211566225,0.37389906,110070.0,110060.0,0.18473906]
[1756211566449,0.35440307,110070.0,110060.0,0.18681906]
[1756211566631,0.35440307,110070.0,110060.0,0.0051]
[1756211566853,0.35488162,110070.0,110060.0,0.0051]
[1756211568035,0.35488162,110070.0,110060.0,0.18681906]
[1756211568666,0.35484162,110070.0,110060.0,0.18681906]
[1756211568888,0.35484162,110070.0,110060.0,0.20426808]
[1756211568889,0.3457565,110070.0,110060.0,0.20426808]
[1756211570239,0.01029366,110070.0,110060.0,0.20426808]
[1756211571802,0.00087855,110070.0,110060.0,0.20426808]
[1756211572019,0.00087855,110070.0,110060.0,0.81199391]
[1756211572256,0.00087855,110070.0,110060.0,0.83930891]
[1756211572450,0.00087855,110070.0,110060.0,0.23158308]
[1756211572654,0.00087855,110070.0,110060.0,0.99346891]